bitfinex/quotes_SOLUSD_20230702
["timestamp","ask_amount","ask_price","bid_price","bid_amount"]
[1688337908079,25.99416524,19.519,19.508,55.0]
[1688337908282,25.99416524,19.518,19.511,21.679]
[1688337908487,25.99416524,19.518,19.512,55.0]
[1688337908667,25.99416524,19.519,19.513,21.676]
[1688337908869,25.99416524,19.518,19.513,21.676]
[1688337909066,51.98833049,19.527,19.514,55.0]
[1688337909265,51.98833049,19.527,19.517,77.466]
[1688337909688,158.1632053,19.533,19.517,77.466]
[1688337909689,73.64633049,19.531,19.517,77.466]
[1688337909981,51.98833049,19.532,19.521,77.452]
[1688337910489,75.75086668,19.532,19.521,77.452]
[1688337910668,103.21833049,19.534,19.521,77.452]
[1688337911370,97.40959335,19.533,19.521,21.668]
[1688337911588,21.66,19.529,19.521,21.668]
[1688337911966,51.98833049,19.533,19.521,21.668]
[1688337912168,21.657,19.532,19.521,21.668]
[1688337913169,124.87333049,19.534,19.521,21.668]
[1688337913386,72.885,19.534,19.521,21.668]
[1688337913592,124.87333049,19.534,19.521,21.668]
[1688337913882,72.885,19.534,19.521,21.668]
[1688337914680,23.77276689,19.536,19.521,21.668]
[1688337914888,23.77276689,19.536,19.526,179.194]
[1688337915468,23.77276689,19.536,19.529,179.162]
[1688337915669,23.77276689,19.536,19.531,21.656]
[1688337916381,51.98833049,19.543,19.531,21.656]
[1688337916584,103.21833049,19.544,19.531,21.656]
[1688337916769,21.648,19.54,19.531,21.656]
[1688337916971,103.21833049,19.544,19.531,21.656]
[1688337917270,51.98833049,19.544,19.531,21.656]
[1688337917478,51.98833049,19.544,19.532,55.0]
[1688337917682,73.62333049,19.551,19.535,179.107]
[1688337917869,73.62333049,19.551,19.536,55.0]
[1688337918074,73.62333049,19.551,19.54,21.647]
[1688337918679,75.73763895,19.55,19.535,55.744]
[1688337918990,21.635,19.551,19.531,101.733]
[1688337918991,73.62933049,19.546,19.536,21.651]
[1688337919189,75.74521828,19.545,19.536,21.651]
[1688337919373,21.644,19.544,19.536,21.651]
[1688337919781,51.23,19.543,19.536,21.651]
[1688337920277,21.641,19.546,19.536,21.651]
[1688337920590,51.98833049,19.548,19.536,21.651]
[1688337920893,51.98833049,19.551,19.536,21.651]
[1688337921194,75.74010681,19.55,19.536,21.651]
[1688337921377,51.98833049,19.55,19.536,21.651]
[1688337921887,51.23,19.544,19.536,21.651]
[1688337922092,21.646,19.542,19.536,21.651]
[1688337922271,72.874,19.544,19.536,21.651]
[1688337922469,21.644,19.544,19.536,21.651]
[1688337922869,51.23,19.543,19.536,21.651]
[1688337923179,72.875,19.543,19.536,21.651]
[1688337923885,51.23,19.543,19.536,21.651]
[1688337924778,72.875,19.543,19.536,21.651]
[1688337925290,51.23,19.545,19.536,77.394]
[1688337925483,72.872,19.545,19.536,77.394]
[1688337925789,72.872,19.545,19.536,21.651]
[1688337925996,21.642,19.545,19.532,21.656]
[1688337926186,21.642,19.545,19.527,55.766]
[1688337926371,21.642,19.545,19.531,21.657]
[1688337927295,51.23,19.544,19.531,21.657]
[1688337927481,21.646,19.542,19.531,21.657]
[1688337927796,51.23,19.544,19.531,21.657]
[1688337927973,51.98833049,19.55,19.531,21.657]
[1688337928387,21.639,19.548,19.536,77.392]
[1688337928596,21.639,19.548,19.54,21.647]
[1688337928792,21.639,19.548,19.537,32.28104864]
[1688337929098,21.639,19.548,19.536,55.741]
[1688337929481,21.638,19.549,19.54,21.647]
[1688337929991,106.922,19.554,19.54,21.647]
[1688337930506,55.692,19.554,19.54,21.647]
[1688337931002,51.23,19.553,19.54,21.647]
[1688337931189,21.638,19.549,19.54,21.647]
[1688337932097,51.98833049,19.556,19.541,55.0]
[1688337932282,51.98833049,19.559,19.545,21.641]
[1688337933079,73.61533049,19.559,19.545,21.641]
[1688337933391,21.626,19.56,19.546,75.0]
[1688337933593,21.626,19.56,19.55,21.636]
[1688337934185,77.3,19.56,19.55,21.636]
[1688337934590,77.3,19.56,19.548,21.638]
[1688337934790,77.3,19.56,19.541,148.6595]
[1688337934988,77.3,19.56,19.542,75.0]
[1688337935185,21.626,19.56,19.547,21.639]
[1688337935411,51.23,19.564,19.548,55.0]
[1688337935592,21.626,19.56,19.552,21.633]
[1688337938697,51.23,19.562,19.552,21.633]
[1688337939688,51.23,19.564,19.552,21.633]
[1688337939991,51.23,19.562,19.552,21.633]
[1688337940589,55.649,19.569,19.552,21.633]
[1688337940590,21.624,19.561,19.552,21.633]
[1688337940887,51.23,19.562,19.552,21.633]
[1688337941094,101.477,19.581,19.553,55.0]
[1688337941304,21.611,19.574,19.561,21.624]
[1688337941604,21.611,19.574,19.562,55.0]
[1688337941787,21.611,19.574,19.565,21.619]
[1688337944787,55.614,19.582,19.565,21.619]
[1688337944986,55.614,19.582,19.566,55.0]
[1688337945190,21.607,19.577,19.57,21.613]
[1688337946081,21.607,19.577,19.561,84.1698]
[1688337946405,21.607,19.577,19.565,21.619]
[1688337946981,55.0,19.576,19.562,21.622]
[1688337947186,21.612,19.572,19.562,21.622]
[1688337948090,77.252,19.572,19.562,21.623]
[1688337948294,21.612,19.572,19.562,21.623]
[1688337949502,21.617,19.568,19.56,21.625]
[1688337949688,21.626,19.56,19.554,21.631]
[1688337950011,21.624,19.562,19.554,21.631]
[1688337950212,21.624,19.562,19.552,21.634]
[1688337950507,21.624,19.562,19.553,21.633]
[1688337951306,21.624,19.562,19.554,21.631]
[1688337951488,55.0,19.561,19.554,21.631]
[1688337951688,21.626,19.56,19.552,21.634]
[1688337952405,21.626,19.56,19.541,196.306]
[1688337952406,32.506,19.56,19.541,196.306]
[1688337952719,55.0,19.559,19.541,196.306]
[1688337953021,21.63,19.556,19.548,21.638]
[1688337953188,10.89,19.57,19.548,21.638]
[1688337953389,21.62,19.565,19.548,123.285]
[1688337953695,55.652,19.568,19.548,123.285]
[1688337953892,55.652,19.568,19.549,55.0]
[1688337954098,21.621,19.564,19.554,21.631]
[1688337954293,21.619,19.566,19.554,21.631]
[1688337954610,21.614,19.571,19.555,55.0]
[1688337954907,21.614,19.571,19.559,77.302]
[1688337956398,21.608,19.576,19.56,55.0]
[1688337956594,21.609,19.575,19.564,21.62]
[1688337956801,21.609,19.575,19.557,101.6]
[1688337957102,21.609,19.575,19.556,55.684]
[1688337957310,10.88,19.57,19.552,55.696]
[1688337957520,77.281,19.565,19.552,21.634]
[1688337957812,77.281,19.565,19.545,55.717]
[1688337957997,21.627,19.559,19.551,21.635]
[1688337958392,21.625,19.561,19.551,21.635]
[1688337958617,21.624,19.562,19.551,21.635]
[1688337959114,21.624,19.562,19.551,77.335]
[1688337959620,77.293,19.562,19.54,55.731]
[1688337959824,77.293,19.562,19.548,21.638]
[1688337959825,10.87,19.56,19.548,21.638]
[1688337960116,21.629,19.557,19.548,21.638]
[1688337960504,55.669,19.562,19.548,21.638]
[1688337960812,21.628,19.558,19.548,21.638]
[1688337961108,55.0,19.557,19.548,21.638]
[1688337961313,55.0,19.557,19.541,196.307]
[1688337961314,21.632,19.555,19.546,21.64]
[1688337961697,55.671,19.562,19.546,21.64]
[1688337961895,101.559,19.565,19.546,21.64]
[1688337962211,21.627,19.559,19.546,21.64]
[1688337962409,21.627,19.559,19.55,21.636]
[1688337962716,101.515,19.574,19.55,21.636]
[1688337962915,21.619,19.566,19.551,55.0]
[1688337963117,21.615,19.57,19.555,77.318]
[1688337963297,55.631,19.576,19.556,55.0]
[1688337963609,10.9,19.58,19.555,77.318]
[1688337963610,21.614,19.57,19.557,20.0]
[1688337963821,21.614,19.57,19.56,21.624]
[1688337964107,10.9,19.58,19.56,21.624]
[1688337964308,21.611,19.573,19.56,21.624]
[1688337964619,21.61,19.575,19.56,21.624]
[1688337965309,21.61,19.575,19.558,21.627]
[1688337965506,42.34401946,19.559,19.558,21.627]
[1688337965812,42.34401946,19.559,19.545,98.6555]
[1688337966120,63.97101946,19.559,19.549,21.637]
[1688337966799,55.0,19.558,19.549,21.637]
[1688337967111,55.0,19.558,19.541,55.726]
[1688337967112,21.63,19.556,19.545,21.641]
[1688337967315,55.0,19.555,19.546,21.64]
[1688337967507,21.633,19.554,19.546,21.64]
[1688337968195,21.636,19.551,19.543,21.643]
[1688337968808,42.34401946,19.559,19.543,21.643]
[1688337969809,21.632,19.555,19.543,21.643]
[1688337970200,10.9,19.55,19.537,21.65]
[1688337970406,10.9,19.55,19.531,55.757]
[1688337970407,21.641,19.547,19.531,55.757]
[1688337970608,21.641,19.547,19.536,77.394]
[1688337970809,21.638,19.549,19.537,20.0]
[1688337971005,101.602,19.557,19.54,21.647]
[1688337971006,21.636,19.551,19.54,21.647]
[1688337972501,65.87,19.55,19.538,21.649]
[1688337973012,21.64,19.547,19.538,21.649]
[1688337973599,55.0,19.546,19.529,55.76]
[1688337973915,21.646,19.541,19.533,21.654]
[1688337975703,55.709,19.548,19.533,21.654]
[1688337975907,21.641,19.547,19.534,20.0]
[1688337976215,101.608,19.556,19.534,20.0]
[1688337976216,21.638,19.549,19.539,21.648]
[1688337976601,21.638,19.549,19.537,21.65]
[1688337976799,21.638,19.549,19.539,21.648]
[1688337976998,21.638,19.549,19.538,21.65]
[1688337976999,77.344,19.549,19.538,21.65]
[1688337977211,77.344,19.549,19.527,55.767]
[1688337977416,77.344,19.549,19.524,101.767]
[1688337977417,77.344,19.549,19.529,21.659]
[1688337978405,21.645,19.543,19.532,21.655]
[1688337978802,123.318,19.543,19.521,95.056]
[1688337979012,179.107,19.536,19.521,95.056]
[1688337979223,77.396,19.536,19.522,21.667]
[1688337980016,77.396,19.536,19.515,157.617]
[1688337980220,77.396,19.536,19.521,21.668]
[1688337980710,77.396,19.536,19.525,21.664]
[1688337981109,77.396,19.536,19.517,55.796]
[1688337981304,77.396,19.536,19.521,21.667]
[1688337982236,21.652,19.536,19.521,21.667]
[1688337982824,77.395,19.536,19.521,21.667]
[1688337983226,21.652,19.536,19.522,20.0]
[1688337983526,55.725,19.543,19.526,21.663]
[1688337983819,21.646,19.542,19.53,10.87]
[1688337984020,21.643,19.544,19.534,21.653]
[1688337984203,21.639,19.548,19.534,21.653]
[1688337984405,21.645,19.543,19.534,21.653]
[1688337984606,55.697,19.552,19.534,21.653]
[1688337984833,21.639,19.548,19.535,20.0]
[1688337985002,21.639,19.548,19.536,21.651]
[1688337985207,21.639,19.548,19.54,21.647]
[1688337985728,21.639,19.548,19.528,55.763]
[1688337986025,21.639,19.548,19.529,55.0]
[1688337986325,21.639,19.548,19.531,21.657]
[1688337986538,55.0,19.547,19.53,21.658]
[1688337986834,21.645,19.542,19.524,55.775]
[1688337987120,101.674,19.543,19.525,20.0]
[1688337987121,21.652,19.537,19.525,20.0]
[1688337987337,21.652,19.537,19.52,55.786]
[1688337987507,21.655,19.533,19.525,21.664]
[1688337987705,21.655,19.533,19.52,55.786]
[1688337988822,21.654,19.535,19.524,21.665]
[1688337989020,21.652,19.536,19.524,21.665]
[1688337989619,21.651,19.537,19.524,123.437]
[1688337989804,21.653,19.536,19.524,21.665]
[1688337990615,21.657,19.532,19.524,21.665]
[1688337990827,21.657,19.532,19.52,21.669]
[1688337991006,21.661,19.528,19.52,21.669]
[1688337995221,55.754,19.533,19.52,21.669]
[1688337995453,21.656,19.532,19.52,77.457]
[1688337999437,21.655,19.534,19.52,77.457]
[1688337999618,21.652,19.536,19.521,65.83719922]
[1688337999935,21.652,19.536,19.525,21.663]
[1688338002953,21.652,19.536,19.525,32.50019922]
[1688338004833,21.652,19.536,19.525,21.663]
[1688338005348,21.656,19.532,19.525,21.663]
[1688338006243,9.70180464,19.546,19.525,21.663]
[1688338006244,55.73,19.541,19.525,21.663]
[1688338006541,55.0,19.54,19.525,21.663]
[1688338008035,21.651,19.537,19.525,21.663]
[1688338008240,21.651,19.537,19.526,10.83719922]
[1688338008444,21.651,19.537,19.529,21.659]
[1688338008823,55.72,19.544,19.529,21.659]
[1688338009029,205.23,19.557,19.529,21.659]
[1688338009326,21.651,19.537,19.529,21.659]
[1688338010342,101.671,19.544,19.529,77.422]
[1688338010343,21.649,19.539,19.529,77.422]
[1688338011932,21.647,19.541,19.529,77.422]
[1688338012229,76.648,19.54,19.529,77.422]
[1688338012839,55.0,19.54,19.529,77.422]
[1688338013042,55.0,19.541,19.529,77.422]
[1688338013839,55.0,19.541,19.529,21.659]
[1688338013840,76.647,19.541,19.529,21.659]
[1688338014046,21.88,19.54,19.529,21.659]
[1688338014341,21.651,19.537,19.529,21.659]
[1688338014548,55.0,19.536,19.529,21.659]
[1688338014727,21.653,19.535,19.529,21.659]
[1688338015541,21.653,19.535,19.52,10.83719922]
[1688338015749,55.0,19.534,19.521,21.668]
[1688338016045,21.661,19.528,19.521,21.668]
[1688338016229,21.661,19.528,19.519,21.67]
[1688338016830,21.661,19.528,19.514,101.819]
[1688338016831,77.427,19.528,19.514,10.83719922]
[1688338017048,55.0,19.527,19.517,21.673]
[1688338017242,21.665,19.524,19.512,55.81]
[1688338017447,55.0,19.523,19.51,10.83719922]
[1688338017631,43.72,19.53,19.51,10.83719922]
[1688338017833,21.667,19.523,19.512,21.678]
[1688338018527,77.643,19.53,19.512,32.51519922]
[1688338018731,21.667,19.523,19.512,32.51519922]
[1688338019239,21.669,19.521,19.512,32.51519922]
[1688338019441,21.669,19.521,19.513,10.83719922]
[1688338019734,55.0,19.529,19.513,32.51419922]
[1688338020337,21.665,19.525,19.513,32.51419922]
[1688338021545,21.665,19.525,19.513,10.83719922]
[1688338021740,55.0,19.524,19.513,10.83719922]
[1688338021942,21.669,19.521,19.513,10.83719922]
[1688338022451,21.669,19.521,19.513,21.677]
[1688338022745,21.667,19.522,19.513,32.51419922]
[1688338022934,21.669,19.521,19.513,21.677]
[1688338025153,21.669,19.521,19.51,10.83719922]
[1688338025331,21.669,19.521,19.51,32.51719922]
[1688338025649,21.673,19.517,19.51,21.681]
[1688338025833,21.672,19.519,19.51,21.681]
[1688338026035,21.669,19.521,19.51,21.681]
[1688338026557,55.0,19.52,19.51,21.681]
[1688338026751,21.673,19.517,19.51,21.681]
[1688338027351,21.673,19.517,19.509,21.681]
[1688338027535,55.0,19.516,19.509,21.681]
[1688338027740,21.676,19.514,19.509,21.681]
[1688338029951,21.673,19.518,19.509,21.681]
[1688338030162,26.11944363,19.53,19.51,41.88]
[1688338030464,55.737,19.539,19.516,179.287]
[1688338030658,21.656,19.533,19.521,21.668]
[1688338031558,21.656,19.533,19.514,55.804]
[1688338031758,21.656,19.533,19.519,21.67]
[1688338032844,21.656,19.533,19.519,32.50719922]
[1688338034144,77.426,19.529,19.519,21.67]
[1688338034348,55.0,19.528,19.517,21.672]
[1688338034546,21.664,19.525,19.517,21.672]
[1688338035266,21.664,19.525,19.517,32.50919922]
[1688338035562,21.664,19.525,19.517,21.672]
[1688338036067,21.663,19.527,19.517,21.672]
[1688338036370,55.757,19.531,19.517,32.50919922]
[1688338036662,55.0,19.53,19.517,32.50919922]
[1688338037160,21.662,19.527,19.517,32.50919922]
[1688338037348,21.662,19.527,19.517,21.672]
[1688338037544,21.666,19.524,19.517,21.672]
[1688338037757,55.765,19.529,19.517,21.672]
[1688338037961,21.662,19.527,19.517,21.672]
[1688338038270,21.662,19.527,19.517,32.50919922]
[1688338038962,21.662,19.527,19.517,21.672]
[1688338039140,21.667,19.523,19.515,41.674]
[1688338039558,101.729,19.533,19.515,52.51119922]
[1688338039864,21.664,19.526,19.52,21.669]
[1688338045162,21.664,19.526,19.516,66.63519922]
[1688338045163,21.664,19.526,19.519,21.671]
[1688338046673,55.0,19.532,19.519,21.671]
[1688338046854,21.662,19.527,19.519,21.671]
[1688338050767,21.662,19.527,19.515,20.0]
[1688338050958,21.662,19.527,19.518,21.672]
[1688338051771,21.668,19.522,19.514,21.675]
[1688338053363,55.0,19.521,19.512,21.677]
[1688338053565,21.671,19.519,19.512,21.677]
[1688338054058,21.671,19.519,19.508,10.83719922]
[1688338054264,21.675,19.516,19.509,21.682]
[1688338057965,55.0,19.515,19.502,96.9117]
[1688338058288,21.679,19.512,19.503,41.688]
[1688338059278,55.8,19.517,19.503,41.688]
[1688338059976,55.0,19.516,19.503,41.688]
[1688338060175,21.677,19.514,19.503,41.688]
[1688338061674,55.0,19.513,19.503,21.688]
[1688338061872,55.0,19.513,19.498,157.754]
[1688338061873,21.681,19.51,19.502,21.69]
[1688338062083,55.0,19.509,19.49,101.947]
[1688338062264,77.523,19.504,19.491,21.702]
[1688338062470,55.0,19.503,19.491,21.702]
[1688338062675,77.539,19.5,19.489,21.704]
[1688338062995,55.0,19.499,19.489,21.704]
[1688338063185,21.696,19.496,19.489,21.704]
[1688338064067,21.696,19.496,19.484,55.891]
[1688338064280,55.0,19.499,19.486,21.706]
[1688338064780,21.696,19.496,19.486,21.706]
[1688338065264,21.695,19.498,19.486,21.706]
[1688338065465,21.695,19.498,19.487,20.0]
[1688338065672,21.695,19.498,19.49,77.577]
[1688338065985,55.0,19.497,19.49,77.577]
[1688338066188,132.542,19.499,19.489,21.704]
[1688338066368,132.542,19.499,19.483,21.71]
[1688338066572,142.24380464,19.499,19.48,21.713]
[1688338066774,142.24380464,19.499,19.474,93.3839]
[1688338066981,142.24380464,19.499,19.478,21.716]
[1688338067291,21.701,19.492,19.478,21.716]
[1688338067492,55.0,19.491,19.478,21.716]
[1688338067674,21.704,19.489,19.478,21.716]
[1688338067995,55.0,19.488,19.478,21.716]
[1688338068195,76.706,19.488,19.478,21.716]
[1688338068687,76.706,19.488,19.468,102.064]
[1688338068688,76.706,19.488,19.461,55.956]
[1688338068988,76.706,19.488,19.468,21.727]
[1688338069493,76.706,19.488,19.468,77.664]
[1688338070291,21.704,19.49,19.47,21.88]
[1688338070489,21.701,19.492,19.476,77.633]
[1688338070693,21.701,19.492,19.477,20.0]
[1688338070900,21.701,19.492,19.481,21.712]
[1688338072494,21.701,19.492,19.47,123.933]
[1688338072495,55.0,19.491,19.47,123.933]
[1688338072801,26.83383626,19.497,19.47,123.933]
[1688338072802,21.88,19.5,19.481,21.713]
[1688338072991,21.693,19.499,19.481,179.609]
[1688338073379,21.693,19.499,19.482,20.0]
[1688338073580,21.693,19.499,19.487,21.706]
[1688338074891,21.691,19.501,19.487,21.706]
[1688338075697,21.84,19.5,19.46,153.16]
[1688338075878,179.545,19.488,19.473,21.721]
[1688338076080,179.545,19.488,19.464,147.4713]
[1688338076280,55.0,19.487,19.471,21.724]
[1688338076596,21.712,19.483,19.461,91.5243]
[1688338076792,21.719,19.476,19.465,21.73]
[1688338076982,55.0,19.482,19.469,21.726]
[1688338076983,76.712,19.482,19.469,21.726]
[1688338077893,55.0,19.482,19.469,21.726]
[1688338078577,21.711,19.483,19.469,21.726]
[1688338078985,21.88,19.5,19.47,118.68]
[1688338079185,21.88,19.5,19.479,21.715]
[1688338079485,21.7,19.493,19.479,19.215]
[1688338082297,55.0,19.492,19.479,19.215]
[1688338082509,9.70180464,19.498,19.479,19.215]
[1688338082800,9.70180464,19.498,19.48,10.91]
[1688338082801,21.695,19.498,19.48,10.91]
[1688338082979,21.695,19.498,19.487,21.706]
[1688338083885,31.39680464,19.498,19.484,21.709]
[1688338084089,64.70180464,19.497,19.484,21.709]
[1688338084292,64.70180464,19.497,19.475,102.024]
[1688338084293,21.699,19.494,19.482,21.712]
[1688338084484,55.0,19.493,19.482,21.712]
[1688338084693,76.7,19.493,19.482,21.712]
[1688338085000,21.696,19.497,19.482,21.712]
[1688338085521,167.42580464,19.503,19.482,21.712]
[1688338085683,21.696,19.497,19.475,55.915]
[1688338085890,31.39780464,19.497,19.48,21.714]
[1688338086084,9.70180464,19.496,19.48,21.714]
[1688338086285,21.702,19.492,19.48,21.714]
[1688338087399,21.694,19.498,19.481,20.0]
[1688338087587,21.694,19.498,19.486,21.707]
[1688338088103,21.694,19.498,19.49,21.703]
[1688338088306,21.694,19.498,19.488,21.705]
[1688338088999,21.692,19.5,19.488,21.705]
[1688338089192,55.835,19.504,19.488,21.705]
[1688338089603,21.695,19.498,19.488,21.705]
[1688338091891,21.695,19.498,19.484,118.1694]
[1688338092085,21.699,19.494,19.486,21.707]
[1688338092511,21.699,19.494,19.487,20.0]
[1688338092812,21.699,19.494,19.487,41.706]
[1688338093103,21.697,19.496,19.487,41.706]
[1688338093605,21.697,19.496,19.487,21.706]
[1688338095003,21.701,19.492,19.485,21.708]
[1688338095189,21.701,19.492,19.486,20.0]
[1688338095395,21.701,19.492,19.486,41.707]
[1688338095908,21.699,19.494,19.486,41.707]
[1688338096392,21.697,19.496,19.486,41.707]
[1688338096586,21.695,19.498,19.486,41.707]
[1688338096793,55.832,19.505,19.486,41.707]
[1688338097198,65.53380464,19.505,19.486,41.707]
[1688338098203,21.694,19.499,19.486,41.707]
[1688338099809,55.832,19.505,19.486,41.707]
[1688338100112,21.692,19.5,19.486,154.51419922]
[1688338101699,55.47696083,19.511,19.487,10.83719922]
[1688338101900,11.07,19.52,19.494,21.698]
[1688338102198,21.678,19.513,19.495,10.83719922]
[1688338102400,21.678,19.513,19.5,77.536]
[1688338102607,21.678,19.513,19.5,21.691]
[1688338103014,31.37980464,19.513,19.5,21.691]
[1688338103418,21.678,19.513,19.5,21.691]
[1688338103915,31.37980464,19.513,19.5,21.691]
[1688338104610,64.70180464,19.512,19.493,157.797]
[1688338104804,21.685,19.507,19.498,21.693]
[1688338105117,21.688,19.504,19.497,21.695]
[1688338105915,21.688,19.504,19.491,94.712]
[1688338106114,21.692,19.5,19.494,21.698]
[1688338107011,21.692,19.5,19.493,21.699]
[1688338109018,55.0,19.499,19.492,21.701]
[1688338109317,21.695,19.497,19.486,55.884]
[1688338109616,21.699,19.494,19.489,21.704]
[1688338109816,21.699,19.494,19.484,55.89]
[1688338109817,21.699,19.494,19.485,21.707]
[1688338111714,55.841,19.502,19.485,21.707]
[1688338111913,55.841,19.502,19.49,21.702]
[1688338111914,21.696,19.497,19.49,21.702]
[1688338112112,21.694,19.499,19.49,21.702]
[1688338113216,21.692,19.5,19.49,21.702]
[1688338115124,75.0,19.499,19.47,10.98]
[1688338115310,21.703,19.491,19.472,30.0]
[1688338115545,21.703,19.491,19.479,55.906]
[1688338115716,77.574,19.491,19.479,77.621]
[1688338116024,77.574,19.491,19.479,21.715]
[1688338117428,21.703,19.491,19.479,77.621]
[1688338120224,10.89,19.51,19.48,10.98]
[1688338120411,10.89,19.51,19.488,21.705]
[1688338120412,21.698,19.495,19.488,21.705]
[1688338121430,21.696,19.496,19.488,21.705]
[1688338122839,55.84,19.502,19.488,21.705]
[1688338123128,55.0,19.501,19.488,21.705]
[1688338123536,55.825,19.508,19.488,21.705]
[1688338123714,55.825,19.508,19.488,32.54219922]
[1688338123913,65.51880464,19.511,19.49,10.98]
[1688338124113,82.60486502,19.517,19.497,179.454]
[1688338124313,21.679,19.512,19.497,179.454]
[1688338125843,21.679,19.512,19.498,92.2997]
[1688338126125,21.679,19.512,19.502,21.689]
[1688338127015,55.0,19.511,19.502,21.689]
[1688338127325,21.683,19.509,19.502,21.689]
[1688338130130,55.0,19.508,19.502,21.689]
[1688338130334,21.685,19.507,19.502,21.689]
[1688338130554,55.0,19.506,19.499,21.693]
[1688338130738,21.687,19.504,19.494,55.862]
[1688338131031,21.692,19.5,19.496,21.696]
[1688338131609,21.692,19.5,19.493,21.7]
[1688338131812,21.695,19.498,19.492,21.7]
[1688338132038,21.695,19.498,19.493,21.699]
[1688338133714,21.695,19.498,19.484,95.3572]
[1688338134021,21.699,19.494,19.489,21.703]
[1688338135633,21.699,19.494,19.485,55.887]
[1688338135929,21.699,19.494,19.486,20.0]
[1688338136332,55.0,19.497,19.489,21.704]
[1688338136728,55.841,19.502,19.489,21.704]
[1688338137036,9.70180464,19.506,19.489,21.704]
[1688338137037,21.692,19.501,19.489,21.704]
[1688338138126,55.0,19.5,19.489,21.704]
[1688338138329,21.695,19.497,19.489,21.704]
[1688338138528,55.0,19.496,19.489,21.704]
[1688338138730,76.697,19.496,19.489,21.704]
[1688338138924,55.0,19.496,19.489,21.704]
[1688338139840,76.697,19.496,19.488,21.705]
[1688338140020,76.697,19.496,19.484,55.89]
[1688338140518,76.697,19.496,19.485,21.708]
[1688338140717,86.39880464,19.496,19.484,21.709]
[1688338140930,86.39880464,19.496,19.483,21.71]
[1688338141141,9.70180464,19.495,19.48,21.713]
[1688338141338,9.70180464,19.495,19.474,157.949]